{"text_format":"2","workbook":"xlsx","n_sheets":2,"sheets":["Лист1","Лист2"],"not_rendered":{"charts":0,"images":0,"macros":0,"external_links":0,"defined_names":0,"comments":0,"pivot_tables":0},"unopened":[],"bounds":{"document_bytes":16777216,"sheet_cells":100000,"run_cost":"one","rows_first":2000,"rows_last":500,"rows_between":2000,"halvings":0,"cell_chars":16384,"cell_head_chars":4096},"cells_cut":0,"cells_raw":0,"read":"whole","date_system":"1900"}

{"sheet":"Лист1","index":0,"n_rows":140,"n_cols":6,"rows_kept":140,"cut":false,"hidden":false,"merged":[[138,0,138,4],[139,0,139,4],[119,1,119,4],[1,2,1,5],[2,2,2,5],[3,2,3,5],[4,2,4,5],[5,2,5,5],[78,1,78,4],[98,0,98,4],[43,0,43,4],[77,0,77,4]]}
[]
[null,"Утверждаю","Утверждаю"]
[null,"_______________________________________","Ремонт квартир Stroymaster35"]
[null,"_______________________________________","___________________________________________"]
[null,"_______________________________________","_____________________________ В.В. Мацкевич"]
[null,"\"____\" _________________________2017 г.","\"___\"_________________________________2017 г."]
[]
[null,"Заказчик: г.Вологда "]
[null,"Подрядчик: Ремонт квартир в Вологде Stroymaster35"]
[null,"г. Вологда, ул. Октябрьская д. 13а кв. 36"]
[null,"Тел. 8(911)541-69-78 В.В Мацкевич"]
[]
[null,"Площадь однокомнатной квартиры - 42,9 м2"]
[null,"Тип дома кирпичный, высота потолков 2,57 м"]
[null,"Общая площадь стен - 128,25 м2"]
[null,"Стоимость ремонтно-отделочных работ -153038,5 руб."]
[null,"Примерная стоимость черновых материалов - 47395 руб."]
[null,"Итого за м2 - 3567 руб."]
[]
["№ ","Наименование работ","Ед. изм","Кол-во.","Цена в руб. за ед. изм.","Стоимость работ в руб."]
[null,"Ремонт кухни S пола = 10,8 м2, S стен = 28 м2"]
[null,"Ремонт пола"]
[1,"Гидроизоляция","м2",10.8,200,{"$f":"D23*E23","v":2160}]
[2,"Монтаж лаг брусок 50*50","м2",10.8,250,{"$f":"D24*E24","v":2700}]
[3,"Утепление материал пенофлекс","м2",10.8,50,540]
[4,"Настил листов цсп","м2",10.8,50,540]
[5,"Обработка бетоноконтактом","м2",10.8,50,540]
[6," Укладка керамогранита с затиркой швов","м2",10.8,600,6480]
[null,"Ремонт стен"]
[1,"Обработка укрепляющей грунтовкой","м2",28,50,1400]
[2,"Частичное нанесение финишной шпаклёвки ","м2",28,50,1400]
[3,"Повторная обработка укрепляющей грунтовкой","м2",28,50,1400]
[4,"Поклейка обоев","м2",23,100,2300]
[5,"Укладка фартука с затиркой швов примерно 5*1","м2",5,600,3000]
[6,"Монтаж плинтусов из полиуретана","п/м",12,100,1200]
[null,"Элетромонтажные работы"]
[1,"Замена розеток, выключателя","шт",5,150,750]
[2,"Монтаж проводки с выкл. для точеч. светил. на потолок","комплект",1,435,435]
[3,"Монтаж и вывод новых розеток","шт",3,150,450]
[null,"Плотницкие работы"]
[null,"Установка одностороннего дверного блока ручка, петли","комплект",1,2350,2350]
[null,"Ремонт потолка "]
[null,"Монтаж натяжного потолка, освещение люста и точ. Светльники","комплекс",10.8,690,7452.0000000000009]
["Итоговая стоимость ремонта кухни",{"$nulls":4},{"$f":"SUM(F23:F43)","v":35097}]
[null,"Ремонт ванной S пола = 3,88 м2, S стен = 19,5 м2"]
[null,"Ремонт пола"]
[1,"Гидроизоляция","м2",3.88,200,{"$f":"D47*E47","v":776}]
[2,"Монтаж лаг брусок 50*50","м2",3.88,250,{"$f":"D48*E48","v":970}]
[3,"Утепление материал пенофлекс","м2",3.88,50,194]
[4,"Настил листов цсп","м2",3.88,50,194]
[5,"Обработка бетоноконтактом","м2",3.88,50,194]
[6,"Уклудка керамогранита с затиркой швов","м2",3.88,600,2328]
[null,"Ремонт стен"]
[1,"Монтаж короба для скрытия труб и стояков","м2",3,450,1350]
[null,"Обработка бетоноконтактом","м2",19.5,50,975]
[null,"Укладка керамической плитки с затиркой швов","м2",19.5,600,11700]
[null,"Монтаж смотровых лючков на коробе","шт",2,400,800]
[null,"Элетромонтажные работы"]
[1,"Вывод разетки под водонагреватель, стир. машину, фен","комплекс",1,1350,1350]
[2,"Монтаж вентилятора на отдельный выключатель","шт",1,950,950]
[3,"Плотницкие работы"]
[1,"Установка одностороннего дверного блока ручка, защёлка, петли","комплект",1,2500,2500]
[null,"Сантехнические работы"]
[1,"Демонтаж ванной","шт",1,800,{"$f":"D64*E64","v":800}]
[2,"Монтаж ванной с герметизацией по периметру","шт",1,1000,1000]
[3,"Демонтаж унитаза","шт",1,600,600]
[4,"Установка подвесного унитаза/Инстоляции","шт",1,2500,2500]
[5,"Монтаж подключения для раковины, стир. машины, водонагревателя","комплекс",1,1300,1300]
[6,"Монтаж стиральной машины с подключением","шт",1,600,600]
[7,"Монтаж душевой стойки со смесителем","шт",1,650,650]
[8,"Монтаж смесителя на раковину","шт",1,350,350]
[9,"Монтаж подвесной раковины","шт",1,600,600]
[10,"Монтаж водонагревателя","шт",1,1000,1000]
[11,"Перенос приборов учёта воды для комфортного снятия показаний","шт",2,600,1200]
[null,"Ремонт потолка "]
[1,"Монтаж потолка из пластиковых панелей с точ. светильниками","м2",3.88,450,1746]
[2,"Монтаж полочек, зеркала, шкафчика","шт",3,300,900]
["Итоговая стоимость ремонта совмещённого санузла",{"$nulls":4},{"$f":"SUM(F47:F77)","v":37527}]
[null,"Ремонт прихожей S пола = 8 м2, S стен = 29,5м2"]
[null,"Ремонт пола"]
[1,"Монтаж лаг брусок 50*50","м2",8,250,{"$f":"E81*D81","v":2000}]
[2,"Утепление материал пенофлекс","м2",8,50,{"$f":"E82*D82","v":400}]
[3,"Настил листов фанеры","м2",8,50,400]
[4,"Укладка подложки","м2",8,50,400]
[5,"Настил паркетной доски","м2",8,400,3200]
[null,"Ремонт стен"]
[1,"Монтаж перегородки для гардеробной 1,73 м *2,57  ","м2",4.5,400,1800]
[2,"Обработка укрепляющей грунтовкой","м2",32.299999999999997,50,1614.9999999999998]
[3,"Частичное нанесение финишной шпаклёвки ","м2",32.299999999999997,50,1614.9999999999998]
[4,"Повторная обработка укрепляющей грунтовкой","м2",32.299999999999997,50,1614.9999999999998]
[5,"Поклейка обоев","м2",32.299999999999997,100,3229.9999999999995]
[6,"Монтаж плинтусов из полиуретана","п/м",12,100,1200]
[null,"Элетромонтажные работы"]
[1,"Замена розеток, выключателя","шт",2,150,300]
[2,"Монтаж и вывод новых розеток","шт",2,150,300]
[3,"Перенос домофонной трубки","шт",1,450,450]
[null,"Ремонт потолка "]
[null,"Монтаж натяжного потолка с точ. светльниками","комплекс",8,690,5520]
["Итоговая стоимость ремонта прихожей",{"$nulls":4},{"$f":"SUM(F81:F98)","v":24045}]
[null,"Ремонт комнаты S пола = 15,8 м2, S стен = 36,4 м2"]
[null,"Ремонт пола"]
[null,"Монтаж лаг брусок 50*50","м2",15.8,250,{"$f":"D102*E102","v":3950}]
[null,"Утепление материал пенофлекс","м2",15.8,50,{"$f":"D103*E103","v":790}]
[null,"Настил листов фанеры","м2",15.8,50,790]
[null,"Укладка подложки","м2",15.8,50,790]
[null,"Настил паркетной доски","м2",15.8,400,6320]
[null,"Ремонт стен"]
[null,"Устроиство дверного проёма для гардеробной 750*2080","м2",1.6,250,400]
[null,"Обработка укрепляющей грунтовкой","м2",34.799999999999997,50,1739.9999999999998]
[null,"Частичное нанесение финишной шпаклёвки ","м2",34.799999999999997,50,1739.9999999999998]
[null,"Повторная обработка укрепляющей грунтовкой","м2",34.799999999999997,50,1739.9999999999998]
[null,"Поклейка обоев","м2",34.799999999999997,100,3479.9999999999995]
[null,"Монтаж плинтусов из полиуретана","м/п",14.7,100,1470]
[null,"Элетромонтажные работы"]
[null,"Замена розеток, выключателя","шт",6,150,900]
[null,"Плотницкие работы"]
[null,"Установка одностороннего дверного блока ручка, петли","комплект",2,2350,4700]
[null,"Ремонт потолка "]
[null,"Монтаж натяжного потолка освещение люстра и точ. светльники","комплекс",15.8,690,10902]
[null,"Общая стоимость ремонта комнаты",null,null,null,{"$f":"SUM(F102:F119)","v":39712}]
[null,"Ремонт балкона S пола = 4,45 м2, S стен = 14,85 м2"]
[null,"Ремонт пола"]
[null,"Монтаж лаг брусок 50*50","м2",4.45,250,{"$f":"E123*D123","v":1112.5}]
[null,"Утепление материал пенофлекс","м2",4.45,50,{"$f":"E124*D124","v":222.5}]
[null,"Настил листов фанеры","м2",4.45,50,222.5]
[null,"Укладка подложки","м2",4.45,50,222.5]
[null,"Настил ламината","м2",4.45,50,222.5]
[null,"Отделка порожка","шт",1,400,400]
[null,"Ремонт стен"]
[null,"Монтаж обрешётки из брусков 50*50","м2",14.85,250,3712.5]
[null,"Утепление материал пенофлекс","м2",14.85,50,742.5]
[null,"Монтаж плинтусов из полиуретана","п/м",9.5,100,950]
[null,"Отделка вагонкой","м2",14.85,350,5197.5]
[null,"Элетромонтажные работы"]
[null,"Вывод освещения","шт",1,1350,1350]
[null,"Монтаж розетки и выключателя","шт",2,150,300]
[null,"Ремонт потолка "]
[null,"Монтаж потолка из пластиковых панелей с точ. светильниками","м2",4.45,450,2002.5]
["Общая стоимость стоимость ремонта балкона",{"$nulls":4},{"$f":"SUM(F123:F138)","v":16657.5}]
["Итоговая стоимость ремонта квартиры",{"$nulls":4},{"$f":"F139+F120+F99+F78+F44","v":153038.5}]

{"sheet":"Лист2","index":1,"n_rows":35,"n_cols":4,"rows_kept":35,"cut":false,"hidden":false,"merged":[[0,1,0,3],[34,0,34,2]]}
[null,"Смета на черновые материалы"]
["№","Наименование материалов","Количество","Стоимость в руб."]
[1,"Штукатурка ротбанд белый 30кг ",2,980]
[2,"Шпаклевка боларс полимерная финишная super супербелая 20 кг ",4,1769]
[3,"Клей для плитки кнауф «флизенклебер» 25кг ",12,3780]
[4,"Грунт боларс акриловый глубокого проникновения 10 кг",1,535]
[5,"Гидроизоляция боларс готовая hydromast 2,5 кг ",4,2000]
[6,"Грунт боларс адгезионный акриловый бетоноконтакт 10 кг",1,680]
[7,"Профиль угло защитный перфорированный оцин. 20*20мм 3м ",10,250]
[8,"Профиль пп 60/27 3м (кнауф, толщ.0,6мм)",4,97]
[9,"Профиль пн 27/28 3м (толщ.0,50мм)",12,95]
[10,"Профиль пс 50/50 3м (толщ.0,50мм) стоечный",4,98]
[11,"Профиль направляющий ПН 50/40 3м",4,107]
[12,"Гкл кнауф 12,5мм 1200*2500 лист",2,530]
[13,"Гипсоволокно КНАУФ ГВЛВ-А-ПК 2500х1200х10мм",1,463]
[14,"Герметик Soudal санитарный 300мл белый ",1,225]
[15,"Пена -клей MAКРОФЛЕКС профессиональная 850мл ",3,1401]
[16,"Брусок 50*50*3000мм сорт А антисептированный ",48,5952]
[17,"Брусок строганный 50х40х3000 септированный",24,2352]
[18,"Фанера ФК 10 мм 1525х1525 мм сорт 4/4 нешлифованная  лист ",13,7345]
[19,"Пенополистирол псб-с-15 у 1000*1000*50 мм",62,5146]
[20,"Элемент пола Пешалань ЭП 1250х500х19",25,6725]
[21,"Саморез гкл-металл 3,5*35 (1000 шт)",1,270]
[22,"Саморез для гвл 3,9*45 (1000 шт)",3,1500]
[23,"Саморез 4,2*25 прессшайба цинк сверло 200 шт",1,160]
[24,"Дюбель-гвоздь 6*80 пот. манжета (полипропилен) /100шт/",7,1050]
[25,"Дюбель-гвоздь борт 6*60 sm-g (200 шт)",1,168]
[26,"Провод электрический ПУГНП 3 х 1,5 освещение ",20,660]
[27,"Провод электрический ПУГНП 3 х 2,5 разводка ",20,1320]
[28,"Ведро 12л евро с мет. ручкой",2,310]
[29,"Розетка этюд одиночная с заземлением, пылевлагозащищенная ",3,450]
[30,"Выключатель kaptika с подс. 2-клавишный белый ",2,332]
[31,"Выключатель kaptika с подс. 1-клавишный белый ",3,525]
[32,"Коробка монтажная hegel круглая 68мм для сплошных стен ",12,120]
["Общая сумма материалов",null,null,{"$f":"SUM(D3:D34)","v":47395}]